[Event "FIDE Women World Blitz 2021"]
[Site "Warsaw"]
[Date "2021.12.29"]
[Round "3.13"]
[White "Brambilla, Renee Blandy T."]
[Black "Jakubowska, Anna"]
[Result "0-1"]
[ECO "D13"]
[WhiteElo "1651"]
[BlackElo "2106"]
[Annotator "NA"]
[PlyCount "57"]
[EventDate "2021.12.29"]
[EventType "swiss"]
[EventCountry "POL"]
[Tiebreak "Cut1 Buchholz"]
[SourceTitle "playchess.com"]
[Source "ChessBase"]
[SourceQuality "1"]
[TimeControl "180+2"]

1. d4 {[%emt 0:00:01]} d5 {[%emt 0:00:01]} 2. c4 {[%emt 0:00:01]} c6 {[%emt 0:
00:01]} 3. Nc3 {[%emt 0:00:02]} Nf6 {[%emt 0:00:02]} 4. cxd5 {[%emt 0:00:05]}
cxd5 {[%emt 0:00:01]} 5. Nf3 {[%emt 0:00:04]} Nc6 {[%emt 0:00:02]} 6. Bf4 {
[%emt 0:00:07]} a6 {[%emt 0:00:01]} 7. e3 {[%emt 0:00:03]} Bg4 {[%emt 0:00:05]}
8. h3 {[%emt 0:00:04]} Bh5 {[%emt 0:00:03]} 9. Be2 {[%emt 0:00:07]} e6 {
[%emt 0:00:03]} 10. O-O {[%emt 0:00:07]} Be7 {[%emt 0:00:04]} 11. Rc1 {[%emt 0:
00:03]} O-O {[%emt 0:00:03]} 12. Nd2 {[%emt 0:00:20]} Bxe2 {[%emt 0:00:08]} 13.
Nxe2 {[%emt 0:00:02]} Rc8 {[%emt 0:00:16]} 14. Nb3 {[%emt 0:00:07]} Ne4 {
[%emt 0:00:04]} 15. f3 {[%emt 0:00:06]} Nd6 {[%emt 0:00:03]} 16. Nc3 {[%emt 0:
00:13]} Nc4 {[%emt 0:00:03]} 17. Qe2 {[%emt 0:00:09]} b5 {[%emt 0:00:06]} 18.
e4 {[%emt 0:00:02]} dxe4 {[%emt 0:00:07]} 19. fxe4 {[%emt 0:00:08]} Nxd4 {
[%emt 0:00:06]} 20. Nxd4 {[%emt 0:00:11]} Qxd4+ {[%emt 0:00:02]} 21. Kh1 {
[%emt 0:00:12]} Rfd8 {[%emt 0:00:34]} 22. Rfd1 {[%emt 0:00:08]} Qf6 {[%emt 0:
00:04]} 23. Bh2 {[%emt 0:00:30]} Bc5 {[%emt 0:00:02]} 24. e5 {[%emt 0:00:09]}
Qf2 {[%emt 0:00:22]} 25. Qxf2 {[%emt 0:00:36]} Bxf2 {[%emt 0:00:01]} 26. Rxd8+
{[%emt 0:00:04]} Rxd8 {[%emt 0:00:01]} 27. Rf1 {[%emt 0:00:05]} Bd4 {[%emt 0:
00:06]} 28. Re1 {[%emt 0:00:08]} Nxb2 {[%emt 0:00:06]} 29. Re2 {[%emt 0:00:04]}
0-1

[Event "FIDE Women World Blitz 2021"]
[Site "Warsaw"]
[Date "2021.12.29"]
[Round "3.14"]
[White "Gaboyan, Susanna"]
[Black "Efimenko, Maria"]
[Result "0-1"]
[ECO "A04"]
[WhiteElo "2253"]
[BlackElo "2207"]
[Annotator "NA"]
[PlyCount "86"]
[EventDate "2021.12.29"]
[EventType "swiss"]
[EventCountry "POL"]
[Tiebreak "Cut1 Buchholz"]
[SourceTitle "playchess.com"]
[Source "ChessBase"]
[SourceQuality "1"]
[TimeControl "180+2"]

1. Nf3 {[%emt 0:00:01]} d6 {[%emt 0:00:02]} 2. g3 {[%emt 0:00:01]} g6 {[%emt 0:
00:01]} 3. Bg2 Bg7 {[%emt 0:00:01]} 4. O-O {[%emt 0:00:02]} e5 {[%emt 0:00:01]}
5. d3 {[%emt 0:00:03]} Ne7 {[%emt 0:00:05]} 6. e4 {[%emt 0:00:03]} O-O {
[%emt 0:00:02]} 7. Nc3 {[%emt 0:00:12]} c6 {[%emt 0:00:01]} 8. h3 {[%emt 0:00:
25]} h6 {[%emt 0:00:04]} 9. Nh2 {[%emt 0:00:03]} d5 {[%emt 0:00:17]} 10. f4 {
[%emt 0:00:10]} dxe4 {[%emt 0:00:11]} 11. Nxe4 {[%emt 0:00:14]} exf4 {[%emt 0:
00:27]} 12. Bxf4 {[%emt 0:00:02]} Be6 {[%emt 0:00:05]} 13. Ng4 {[%emt 0:00:17]}
Nf5 {[%emt 0:00:01]} 14. Kh2 {[%emt 0:00:15]} Na6 {[%emt 0:00:08]} 15. Be5 {
[%emt 0:00:05]} Bxe5 {[%emt 0:00:11]} 16. Nxe5 {[%emt 0:00:02]} Qc7 {[%emt 0:
00:02]} 17. Ng4 {[%emt 0:00:07]} h5 {[%emt 0:00:21]} 18. Ngf6+ {[%emt 0:00:02]}
Kg7 {[%emt 0:00:01]} 19. Nxh5+ {[%emt 0:00:11]} gxh5 {[%emt 0:00:03]} 20. Qxh5
{[%emt 0:00:01]} f6 {[%emt 0:00:29]} 21. Rxf5 {[%emt 0:00:17]} Bxf5 {[%emt 0:
00:01]} 22. Qxf5 {[%emt 0:00:01]} Nb4 {[%emt 0:00:01]} 23. Rf1 {[%emt 0:00:04]}
Nd5 {[%emt 0:00:03]} 24. Qg4+ {[%emt 0:00:15]} Kh8 {[%emt 0:00:15]} 25. Rf5 {
[%emt 0:00:06]} Rf7 {[%emt 0:00:00]} 26. Qf3 {[%emt 0:00:16]} Raf8 {[%emt 0:00:
14]} 27. c4 {[%emt 0:00:04]} Ne7 {[%emt 0:00:06]} 28. Rh5+ {[%emt 0:00:04]} Kg7
{[%emt 0:00:05]} 29. Rh4 {[%emt 0:00:20]} Ng6 {[%emt 0:00:06]} 30. Rg4 {
[%emt 0:00:01]} f5 {[%emt 0:00:03]} 31. Rxg6+ {[%emt 0:00:13]} Kxg6 {[%emt 0:
00:02]} 32. Nc3 {[%emt 0:00:04]} Qe5 {[%emt 0:00:01]} 33. Ne2 {[%emt 0:00:02]}
Rg8 {[%emt 0:00:04]} 34. Nf4+ {[%emt 0:00:01]} Kf6 {[%emt 0:00:01]} 35. Qh5 {
[%emt 0:00:03]} Rfg7 {[%emt 0:00:03]} 36. Qh6+ {[%emt 0:00:02]} Ke7 {[%emt 0:
00:01]} 37. d4 {[%emt 0:00:02]} Qf6 {[%emt 0:00:05]} 38. Qh5 {[%emt 0:00:03]}
Rxg3 {[%emt 0:00:02]} 39. Qe2+ {[%emt 0:00:02]} Kd7 {[%emt 0:00:04]} 40. Nh5 {
[%emt 0:00:02]} Rxg2+ {[%emt 0:00:02]} 41. Qxg2 {[%emt 0:00:02]} Rxg2+ {
[%emt 0:00:01]} 42. Kxg2 Qg5+ 43. Ng3 f4 0-1

[Event "FIDE Women World Blitz 2021"]
[Site "Warsaw"]
[Date "2021.12.29"]
[Round "3.15"]
[White "Atalik, Ekaterina"]
[Black "Semenova, Elena"]
[Result "0-1"]
[ECO "D32"]
[WhiteElo "2430"]
[BlackElo "2233"]
[Annotator "NA"]
[PlyCount "98"]
[EventDate "2021.12.29"]
[EventType "swiss"]
[EventCountry "POL"]
[Tiebreak "Cut1 Buchholz"]
[SourceTitle "playchess.com"]
[Source "ChessBase"]
[SourceQuality "1"]
[TimeControl "180+2"]

1. Nf3 {[%emt 0:00:01]} d5 {[%emt 0:00:00]} 2. e3 {[%emt 0:00:02]} Nf6 {
[%emt 0:00:02]} 3. c4 {[%emt 0:00:01]} c5 {[%emt 0:00:10]} 4. d4 {[%emt 0:00:
03]} Nc6 {[%emt 0:00:02]} 5. Nc3 {[%emt 0:00:05]} e6 {[%emt 0:00:01]} 6. cxd5 {
[%emt 0:00:04]} exd5 {[%emt 0:00:02]} 7. Bb5 {[%emt 0:00:04]} Bd6 {[%emt 0:00:
16]} 8. dxc5 {[%emt 0:00:02]} Bxc5 {[%emt 0:00:01]} 9. O-O {[%emt 0:00:04]} O-O
{[%emt 0:00:02]} 10. h3 {[%emt 0:00:06]} Be6 {[%emt 0:00:19]} 11. b3 {[%emt 0:
00:10]} Rc8 {[%emt 0:00:18]} 12. Bb2 {[%emt 0:00:02]} a6 {[%emt 0:00:06]} 13.
Be2 {[%emt 0:00:04]} Qd7 {[%emt 0:00:20]} 14. Rc1 {[%emt 0:00:03]} Qe7 {
[%emt 0:00:08]} 15. Na4 {[%emt 0:00:09]} Ba7 {[%emt 0:00:06]} 16. Bxf6 {
[%emt 0:00:31]} Qxf6 {[%emt 0:00:03]} 17. Nc5 {[%emt 0:00:02]} Qe7 {[%emt 0:00:
14]} 18. Nxe6 {[%emt 0:00:04]} Qxe6 {[%emt 0:00:08]} 19. Bd3 {[%emt 0:00:06]}
h6 {[%emt 0:00:09]} 20. Bb1 {[%emt 0:00:02]} Ne5 {[%emt 0:00:12]} 21. Nd4 {
[%emt 0:00:14]} Qf6 {[%emt 0:00:06]} 22. Qh5 {[%emt 0:00:18]} Bxd4 {[%emt 0:00:
29]} 23. exd4 {[%emt 0:00:02]} Nc6 {[%emt 0:00:09]} 24. Qxd5 {[%emt 0:00:11]}
Qxd4 {[%emt 0:00:12]} 25. Qxd4 {[%emt 0:00:09]} Nxd4 {[%emt 0:00:01]} 26. Rxc8
{[%emt 0:00:06]} Rxc8 {[%emt 0:00:00]} 27. Rd1 {[%emt 0:00:05]} Rd8 {[%emt 0:
00:06]} 28. Kf1 {[%emt 0:00:02]} Kf8 29. Be4 {[%emt 0:00:04]} b6 {[%emt 0:00:
02]} 30. b4 {[%emt 0:00:11]} Ke7 {[%emt 0:00:04]} 31. a4 {[%emt 0:00:07]} f5 {
[%emt 0:00:06]} 32. Bb7 {[%emt 0:00:07]} a5 {[%emt 0:00:01]} 33. bxa5 {[%emt 0:
00:02]} bxa5 {[%emt 0:00:00]} 34. Ba6 {[%emt 0:00:04]} Kf6 {[%emt 0:00:03]} 35.
Bc4 {[%emt 0:00:05]} Ke5 {[%emt 0:00:02]} 36. g3 {[%emt 0:00:09]} g5 {[%emt 0:
00:01]} 37. Bf7 {[%emt 0:00:12]} f4 {[%emt 0:00:02]} 38. gxf4+ {[%emt 0:00:05]}
gxf4 {[%emt 0:00:01]} 39. Rc1 {[%emt 0:00:10]} Nf5 {[%emt 0:00:11]} 40. Rc5+ {
[%emt 0:00:00]} Kf6 {[%emt 0:00:03]} 41. Bd5 {[%emt 0:00:01]} f3 {[%emt 0:00:
03]} 42. Bxf3 {[%emt 0:00:05]} Nd4 {[%emt 0:00:00]} 43. Be4 {[%emt 0:00:04]}
Nb3 {[%emt 0:00:02]} 44. Rb5 {[%emt 0:00:06]} Nd2+ {[%emt 0:00:01]} 45. Ke2 {
[%emt 0:00:02]} Nxe4 {[%emt 0:00:00]} 46. Rxa5 {[%emt 0:00:02]} Rd4 {[%emt 0:
00:02]} 47. Ke3 {[%emt 0:00:03]} Rb4 {[%emt 0:00:01]} 48. Ra6+ {[%emt 0:00:03]}
Kg7 {[%emt 0:00:03]} 49. a5 {[%emt 0:00:03]} Ra4 {[%emt 0:00:01]} 0-1

[Event "FIDE Women World Blitz 2021"]
[Site "Warsaw"]
[Date "2021.12.29"]
[Round "3.16"]
[White "Stefanova, Antoaneta"]
[Black "Nomin-Erdene, Davaademberel"]
[Result "0-1"]
[ECO "A04"]
[WhiteElo "2475"]
[BlackElo "2188"]
[Annotator "ChessBase"]
[PlyCount "65"]
[EventDate "2021.12.29"]
[EventType "swiss"]
[EventCountry "POL"]
[Tiebreak "Cut1 Buchholz"]
[SourceTitle "playchess.com"]
[Source "ChessBase"]
[SourceQuality "1"]
[TimeControl "180+2"]

1. Nf3 {[%emt 0:00:01]} f5 {[%emt 0:00:01]} 2. d3 {[%emt 0:00:02]} d6 {[%emt 0:
00:01]} 3. e4 {[%emt 0:00:02]} e5 {[%emt 0:00:01]} 4. Nc3 {[%emt 0:00:09]} Nc6
{[%emt 0:00:01]} 5. Bg5 {[%emt 0:00:03]} Be7 {[%emt 0:00:07]} 6. h4 {[%emt 0:
00:03]} Nf6 {[%emt 0:00:03]} 7. Nd5 {[%emt 0:00:09]} Be6 {[%emt 0:00:32]} 8.
Nxe7 {[%emt 0:00:13]} Qxe7 {[%emt 0:00:02]} 9. exf5 {[%emt 0:00:06]} Bxf5 {
[%emt 0:00:03]} 10. Nd2 {[%emt 0:00:17]} h6 {[%emt 0:00:22]} 11. Bxf6 {[%emt 0:
00:14]} Qxf6 {[%emt 0:00:01]} 12. g4 {[%emt 0:00:06]} Be6 {[%emt 0:00:03]} 13.
Bg2 {[%emt 0:00:04]} Qf4 {[%emt 0:00:14]} 14. Bxc6+ {[%emt 0:00:10]} bxc6 {
[%emt 0:00:01]} 15. Rg1 {[%emt 0:00:08]} Rf8 {[%emt 0:00:09]} 16. Qe2 {[%emt 0:
00:03]} Qh2 {[%emt 0:00:28]} 17. O-O-O {[%emt 0:00:14]} Qxf2 {[%emt 0:00:22]}
18. Qe4 {[%emt 0:00:11]} Bd5 {[%emt 0:00:00]} 19. Qb4 {[%emt 0:00:02]} Kd7 {
[%emt 0:00:05]} 20. g5 {[%emt 0:00:06]} Rab8 {[%emt 0:00:08]} 21. Qa4 {[%emt 0:
00:15]} h5 {[%emt 0:00:16]} 22. Rgf1 {[%emt 0:00:13]} Qe3 {[%emt 0:00:09]} 23.
Rfe1 {[%emt 0:00:36]} Qb6 {[%emt 0:00:07]} 24. Qa3 {[%emt 0:00:03]} Qb4 {
[%emt 0:00:04]} 25. Qxb4 {[%emt 0:00:04]} Rxb4 {[%emt 0:00:01]} 26. c4 {
[%emt 0:00:01]} Be6 {[%emt 0:00:00]} 27. Re4 {[%emt 0:00:03]} Rbb8 {[%emt 0:00:
07]} 28. d4 {[%emt 0:00:04]} exd4 {[%emt 0:00:13]} 29. Rxd4 {[%emt 0:00:01]}
Rf2 {[%emt 0:00:08]} 30. b3 {[%emt 0:00:02]} Bf5 {[%emt 0:00:03]} 31. Kb2 {
[%emt 0:00:04]} Re8 {[%emt 0:00:01]} 32. Ka3 {[%emt 0:00:03]} Ree2 {[%emt 0:00:
01]} 33. c5 {[%emt 0:00:01]} 0-1

[Event "FIDE Women World Blitz 2021"]
[Site "Warsaw"]
[Date "2021.12.29"]
[Round "3.17"]
[White "Badelka, Olga"]
[Black "Kosteniuk, Alexandra"]
[Result "0-1"]
[ECO "E44"]
[WhiteElo "2188"]
[BlackElo "2518"]
[Annotator "ChessBase"]
[PlyCount "109"]
[EventDate "2021.12.29"]
[EventType "swiss"]
[EventCountry "POL"]
[Tiebreak "Cut1 Buchholz"]
[SourceTitle "playchess.com"]
[Source "ChessBase"]
[SourceQuality "1"]
[TimeControl "180+2"]

1. d4 {[%emt 0:00:02]} Nf6 {[%emt 0:00:01]} 2. c4 {[%emt 0:00:01]} e6 {[%emt 0:
00:01]} 3. Nc3 {[%emt 0:00:01]} Bb4 {[%emt 0:00:01]} 4. e3 {[%emt 0:00:02]} b6
{[%emt 0:00:01]} 5. Nge2 {[%emt 0:00:16]} Ne4 {[%emt 0:00:01]} 6. Qc2 {[%emt 0:
00:05]} Bb7 {[%emt 0:00:01]} 7. a3 {[%emt 0:00:04]} Bxc3+ {[%emt 0:00:01]} 8.
Nxc3 {[%emt 0:00:01]} Nxc3 {[%emt 0:00:02]} 9. Qxc3 {[%emt 0:00:02]} d6 {
[%emt 0:00:01]} 10. Bd3 {[%emt 0:00:08]} Qg5 {[%emt 0:00:08]} 11. Bd2 {[%emt 0:
00:26]} Qxg2 {[%emt 0:00:10]} 12. O-O-O {[%emt 0:00:02]} Qxf2 {[%emt 0:00:24]}
13. Rhg1 {[%emt 0:00:14]} g6 {[%emt 0:00:09]} 14. e4 {[%emt 0:01:15]} Nc6 {
[%emt 0:00:18]} 15. d5 {[%emt 0:00:10]} Ne5 {[%emt 0:00:06]} 16. Bc2 {[%emt 0:
00:05]} O-O-O {[%emt 0:00:27]} 17. h3 {[%emt 0:00:12]} Qe2 {[%emt 0:00:05]} 18.
b3 {[%emt 0:00:16]} f5 {[%emt 0:00:27]} 19. dxe6 {[%emt 0:00:05]} Bxe4 {
[%emt 0:00:08]} 20. Bxe4 {[%emt 0:00:02]} Qxe4 {[%emt 0:00:03]} 21. Bg5 {
[%emt 0:00:03]} Rde8 {[%emt 0:00:04]} 22. Rge1 {[%emt 0:00:03]} Qc6 {[%emt 0:
00:26]} 23. Bf6 {[%emt 0:00:00]} Rhf8 {[%emt 0:00:00]} 24. Bxe5 {[%emt 0:00:01]
} dxe5 {[%emt 0:00:01]} 25. Qxe5 {[%emt 0:00:02]} Re7 {[%emt 0:00:07]} 26. Rd3
{[%emt 0:00:06]} Rfe8 {[%emt 0:00:01]} 27. Rde3 {[%emt 0:00:03]} Rxe6 {[%emt 0:
00:05]} 28. Qxe6+ {[%emt 0:00:01]} Rxe6 {[%emt 0:00:01]} 29. Rxe6 {[%emt 0:00:
01]} Qf3 {[%emt 0:00:01]} 30. R1e3 {[%emt 0:00:05]} Qf2 {[%emt 0:00:03]} 31.
Re8+ {[%emt 0:00:02]} Kb7 {[%emt 0:00:01]} 32. Rc3 {[%emt 0:00:05]} f4 {
[%emt 0:00:11]} 33. Rf8 {[%emt 0:00:03]} Qd4 {[%emt 0:00:07]} 34. Kc2 {[%emt 0:
00:02]} Qe4+ {[%emt 0:00:04]} 35. Kb2 {[%emt 0:00:00]} Qe2+ {[%emt 0:00:04]}
36. Kc1 {[%emt 0:00:02]} g5 {[%emt 0:00:03]} 37. Rf7 {[%emt 0:00:01]} h5 {
[%emt 0:00:07]} 38. Rf5 {[%emt 0:00:04]} Qf1+ {[%emt 0:00:05]} 39. Kb2 {
[%emt 0:00:02]} g4 {[%emt 0:00:03]} 40. hxg4 {[%emt 0:00:01]} hxg4 {[%emt 0:00:
01]} 41. c5 {[%emt 0:00:02]} Qg2+ {[%emt 0:00:02]} 42. Rc2 {[%emt 0:00:02]} Qe4
{[%emt 0:00:01]} 43. c6+ {[%emt 0:00:02]} Ka6 {[%emt 0:00:00]} 44. Rf7 {
[%emt 0:00:05]} f3 {[%emt 0:00:04]} 45. Kb1 {[%emt 0:00:01]} Qe1+ {[%emt 0:00:
02]} 46. Kb2 {[%emt 0:00:01]} Qe5+ {[%emt 0:00:01]} 47. Kb1 {[%emt 0:00:02]}
Qd5 {[%emt 0:00:03]} 48. Rxc7 {[%emt 0:00:01]} Qxb3+ {[%emt 0:00:01]} 49. Kc1 {
[%emt 0:00:03]} Qe3+ {[%emt 0:00:03]} 50. Kb1 {[%emt 0:00:04]} Qe1+ {[%emt 0:
00:04]} 51. Ka2 {[%emt 0:00:00]} Qe6+ {[%emt 0:00:01]} 52. Kb1 {[%emt 0:00:00]}
f2 {[%emt 0:00:02]} 53. Rxf2 {[%emt 0:00:03]} Qe1+ {[%emt 0:00:01]} 54. Kc2 {
[%emt 0:00:01]} Qxf2+ {[%emt 0:00:01]} 55. Kc3 {[%emt 0:00:04]} 0-1

[Event "FIDE Women World Blitz 2021"]
[Site "Warsaw"]
[Date "2021.12.29"]
[Round "3.18"]
[White "Michna, Marta"]
[Black "Babiy, Olga"]
[Result "0-1"]
[ECO "D00"]
[WhiteElo "2312"]
[BlackElo "2179"]
[Annotator "NA"]
[PlyCount "103"]
[EventDate "2021.12.29"]
[EventType "swiss"]
[EventCountry "POL"]
[Tiebreak "Cut1 Buchholz"]
[SourceTitle "playchess.com"]
[Source "ChessBase"]
[SourceQuality "1"]
[TimeControl "180+2"]

1. d4 {[%emt 0:00:01]} d5 {[%emt 0:00:00]} 2. Bf4 {[%emt 0:00:01]} c5 {[%emt 0:
00:02]} 3. e3 {[%emt 0:00:04]} Nc6 {[%emt 0:00:01]} 4. c3 {[%emt 0:00:00]} Qb6
{[%emt 0:00:02]} 5. Qb3 {[%emt 0:00:22]} c4 {[%emt 0:00:01]} 6. Qc2 {[%emt 0:
00:00]} e5 {[%emt 0:00:04]} 7. dxe5 {[%emt 0:00:51]} Bf5 {[%emt 0:00:01]} 8.
Qc1 {[%emt 0:00:02]} g5 {[%emt 0:00:01]} 9. Bg3 {[%emt 0:00:13]} h5 {[%emt 0:
00:01]} 10. h4 {[%emt 0:00:01]} g4 {[%emt 0:00:01]} 11. Ne2 {[%emt 0:00:09]}
Bg7 {[%emt 0:00:04]} 12. Nd4 {[%emt 0:00:39]} Nge7 {[%emt 0:00:01]} 13. Nd2 {
[%emt 0:00:15]} Bxe5 {[%emt 0:00:03]} 14. Nxf5 {[%emt 0:00:19]} Nxf5 {[%emt 0:
00:02]} 15. Bxe5 Nxe5 {[%emt 0:00:01]} 16. Qc2 {[%emt 0:00:03]} Nd6 {[%emt 0:
00:33]} 17. O-O-O {[%emt 0:00:09]} O-O-O {[%emt 0:00:01]} 18. g3 {[%emt 0:00:
08]} f5 {[%emt 0:00:01]} 19. Bg2 {[%emt 0:00:08]} Ne4 {[%emt 0:00:01]} 20. Nxe4
fxe4 {[%emt 0:00:01]} 21. Rd4 {[%emt 0:00:08]} Rhf8 {[%emt 0:00:07]} 22. Rf1 {
[%emt 0:00:02]} Nd3+ {[%emt 0:00:09]} 23. Kb1 Rf6 {[%emt 0:00:04]} 24. Bxe4 {
[%emt 0:00:03]} dxe4 {[%emt 0:00:12]} 25. Rxc4+ {[%emt 0:00:01]} Kb8 {[%emt 0:
00:05]} 26. Rxe4 {[%emt 0:00:01]} Rf5 {[%emt 0:00:22]} 27. Rd4 {[%emt 0:00:01]}
Rxd4 {[%emt 0:00:25]} 28. exd4 {[%emt 0:00:01]} Rf3 {[%emt 0:00:20]} 29. Qe2 {
[%emt 0:00:03]} a6 {[%emt 0:00:08]} 30. b3 {[%emt 0:00:07]} Qc6 {[%emt 0:00:06]
} 31. c4 {[%emt 0:00:01]} Qg6 {[%emt 0:00:02]} 32. Ka1 {[%emt 0:00:02]} Qf6 {
[%emt 0:00:02]} 33. Qe8+ {[%emt 0:00:03]} Ka7 {[%emt 0:00:01]} 34. Qe4 {
[%emt 0:00:03]} Nxf2 {[%emt 0:00:21]} 35. Qd5 {[%emt 0:00:00]} Rf5 {[%emt 0:00:
02]} 36. Qg2 Qxd4+ {[%emt 0:00:08]} 37. Kb1 {[%emt 0:00:06]} Qd3+ {[%emt 0:00:
03]} 38. Ka1 {[%emt 0:00:01]} Qc3+ {[%emt 0:00:06]} 39. Kb1 {[%emt 0:00:00]}
Qd3+ {[%emt 0:00:06]} 40. Ka1 {[%emt 0:00:01]} Qe3 {[%emt 0:00:05]} 41. Qg1 {
[%emt 0:00:02]} Rf3 {[%emt 0:00:06]} 42. Kb1 {[%emt 0:00:03]} Qd3+ {[%emt 0:00:
01]} 43. Ka1 Qc3+ {[%emt 0:00:01]} 44. Kb1 {[%emt 0:00:00]} Qe3 {[%emt 0:00:02]
} 45. Ka1 {[%emt 0:00:01]} a5 {[%emt 0:00:03]} 46. Re1 {[%emt 0:00:02]} Qd4+ {
[%emt 0:00:03]} 47. Kb1 Ka6 {[%emt 0:00:02]} 48. Re6+ {[%emt 0:00:01]} b6 {
[%emt 0:00:01]} 49. c5 {[%emt 0:00:04]} Qd3+ {[%emt 0:00:04]} 50. Ka1 {[%emt 0:
00:00]} Qc3+ 51. Kb1 Qxc5 {[%emt 0:00:04]} 52. Qf1+ {[%emt 0:00:04]} 0-1

[Event "FIDE Women World Blitz 2021"]
[Site "Warsaw"]
[Date "2021.12.29"]
[Round "3.19"]
[White "Maisuradze, Nino"]
[Black "Paehtz, Elisabeth"]
[Result "0-1"]
[ECO "B07"]
[WhiteElo "2175"]
[BlackElo "2485"]
[Annotator "ChessBase"]
[PlyCount "72"]
[EventDate "2021.12.29"]
[EventType "swiss"]
[EventCountry "POL"]
[Tiebreak "Cut1 Buchholz"]
[SourceTitle "playchess.com"]
[Source "ChessBase"]
[SourceQuality "1"]
[TimeControl "180+2"]

1. d4 {[%emt 0:00:00]} g6 {[%emt 0:00:01]} 2. Nf3 {[%emt 0:00:02]} Bg7 {
[%emt 0:00:01]} 3. e4 {[%emt 0:00:02]} d6 {[%emt 0:00:02]} 4. c3 {[%emt 0:00:
07]} Nf6 {[%emt 0:00:02]} 5. Bd3 {[%emt 0:00:02]} Nc6 {[%emt 0:00:01]} 6. O-O {
[%emt 0:00:01]} O-O {[%emt 0:00:02]} 7. h3 {[%emt 0:00:01]} e5 {[%emt 0:00:01]}
8. Be3 {[%emt 0:00:06]} Nh5 {[%emt 0:00:02]} 9. Qd2 {[%emt 0:00:22]} Bd7 {
[%emt 0:00:04]} 10. a4 {[%emt 0:00:05]} Qe7 {[%emt 0:00:04]} 11. a5 {[%emt 0:
00:01]} a6 {[%emt 0:00:01]} 12. b4 {[%emt 0:00:15]} Kh8 {[%emt 0:00:12]} 13.
Na3 {[%emt 0:00:17]} exd4 {[%emt 0:00:05]} 14. Nxd4 {[%emt 0:00:11]} Nf6 {
[%emt 0:00:06]} 15. Bg5 {[%emt 0:00:33]} Rae8 {[%emt 0:00:05]} 16. Rae1 {
[%emt 0:00:03]} Kg8 {[%emt 0:00:09]} 17. Nac2 {[%emt 0:00:17]} Ne5 {[%emt 0:00:
04]} 18. c4 {[%emt 0:00:16]} c5 {[%emt 0:00:03]} 19. bxc5 {[%emt 0:00:07]} dxc5
{[%emt 0:00:02]} 20. Nb3 {[%emt 0:00:07]} Ba4 {[%emt 0:00:01]} 21. Nc1 {
[%emt 0:00:16]} Rd8 {[%emt 0:00:03]} 22. Qc3 {[%emt 0:00:06]} h6 {[%emt 0:00:
05]} 23. Bh4 {[%emt 0:00:10]} g5 {[%emt 0:00:01]} 24. Bg3 Nh5 {[%emt 0:00:02]}
25. Qa3 {[%emt 0:00:08]} Nxd3 {[%emt 0:00:07]} 26. Qxa4 {[%emt 0:00:02]} Nxe1 {
[%emt 0:00:01]} 27. Rxe1 {[%emt 0:00:05]} Nxg3 {[%emt 0:00:02]} 28. fxg3 {
[%emt 0:00:01]} Qe5 {[%emt 0:00:01]} 29. Kh2 {[%emt 0:00:03]} Qc3 {[%emt 0:00:
03]} 30. Ne2 {[%emt 0:00:05]} Qd2 {[%emt 0:00:02]} 31. Ng1 {[%emt 0:00:06]} Qc3
{[%emt 0:00:12]} 32. Re2 {[%emt 0:00:03]} Rd2 {[%emt 0:00:05]} 33. Rxd2 {
[%emt 0:00:03]} Qxd2 {[%emt 0:00:01]} 34. Nf3 Qd3 {[%emt 0:00:03]} 35. e5 {
[%emt 0:00:03]} Qe4 {[%emt 0:00:03]} 36. Qd7 {[%emt 0:00:02]} Qxc2 {[%emt 0:00:
03]} 0-1

[Event "FIDE Women World Blitz 2021"]
[Site "Warsaw"]
[Date "2021.12.29"]
[Round "3.20"]
[White "Bodnaruk, Anastasia"]
[Black "Sliwicka, Alicja"]
[Result "1-0"]
[ECO "B20"]
[WhiteElo "2396"]
[BlackElo "2303"]
[Annotator "NA"]
[PlyCount "73"]
[EventDate "2021.12.29"]
[EventType "swiss"]
[EventCountry "POL"]
[Tiebreak "Cut1 Buchholz"]
[SourceTitle "playchess.com"]
[Source "ChessBase"]
[SourceQuality "1"]
[TimeControl "180+2"]

1. e4 {[%emt 0:00:01]} c5 {[%emt 0:00:01]} 2. b3 {[%emt 0:00:01]} d6 {[%emt 0:
00:04]} 3. Bb2 {[%emt 0:00:02]} Nf6 {[%emt 0:00:01]} 4. Nc3 {[%emt 0:00:11]} e6
{[%emt 0:00:02]} 5. f4 {[%emt 0:00:09]} Nc6 {[%emt 0:00:02]} 6. Nf3 {[%emt 0:
00:01]} Be7 {[%emt 0:00:03]} 7. Bb5 {[%emt 0:00:02]} Bd7 {[%emt 0:00:18]} 8. d3
{[%emt 0:00:10]} a6 {[%emt 0:00:03]} 9. Bxc6 {[%emt 0:00:01]} Bxc6 {[%emt 0:00:
01]} 10. O-O {[%emt 0:00:13]} b5 {[%emt 0:00:08]} 11. Qe2 {[%emt 0:00:08]} O-O
{[%emt 0:00:21]} 12. Nd1 {[%emt 0:00:06]} c4 {[%emt 0:00:15]} 13. Ne3 {[%emt 0:
00:17]} cxd3 {[%emt 0:00:02]} 14. cxd3 {[%emt 0:00:02]} d5 {[%emt 0:00:39]} 15.
e5 {[%emt 0:00:03]} Nd7 {[%emt 0:00:02]} 16. f5 {[%emt 0:00:11]} exf5 {[%emt 0:
00:13]} 17. Nxf5 {[%emt 0:00:03]} Nc5 {[%emt 0:00:03]} 18. Rac1 {[%emt 0:00:12]
} b4 {[%emt 0:00:29]} 19. Nxe7+ {[%emt 0:00:11]} Qxe7 {[%emt 0:00:01]} 20. Bd4
{[%emt 0:00:01]} Nxd3 {[%emt 0:00:38]} 21. Rxc6 {[%emt 0:00:01]} Nf4 {[%emt 0:
00:01]} 22. Qd2 {[%emt 0:00:01]} Ne6 {[%emt 0:00:01]} 23. Rfc1 {[%emt 0:00:04]}
a5 {[%emt 0:00:02]} 24. Bc5 {[%emt 0:00:13]} Nxc5 {[%emt 0:00:01]} 25. R6xc5 {
[%emt 0:00:01]} a4 {[%emt 0:00:03]} 26. Rxd5 {[%emt 0:00:05]} axb3 {[%emt 0:00:
04]} 27. axb3 {[%emt 0:00:01]} Ra3 {[%emt 0:00:06]} 28. Rd1 {[%emt 0:00:10]} h6
{[%emt 0:00:05]} 29. Rd8 {[%emt 0:00:12]} Qa7+ {[%emt 0:00:01]} 30. Qf2 {
[%emt 0:00:13]} Qc7 {[%emt 0:00:02]} 31. Rxf8+ {[%emt 0:00:03]} Kxf8 {[%emt 0:
00:01]} 32. Nd4 {[%emt 0:00:04]} Qb7 {[%emt 0:00:09]} 33. Ne6+ {[%emt 0:00:13]}
Kg8 {[%emt 0:00:00]} 34. Rd8+ {[%emt 0:00:03]} Kh7 {[%emt 0:00:01]} 35. Qf5+ {
[%emt 0:00:16]} g6 {[%emt 0:00:01]} 36. Rh8+ {[%emt 0:00:03]} Kxh8 {[%emt 0:00:
03]} 37. Qf6+ {[%emt 0:00:01]} 1-0